[Event "EYCC Girls-U16 2019"]
[Site "Bratislava"]
[Date "2019.08.09"]
[Round "8.4"]
[White "Malicka, Maria"]
[Black "Donghvani, Nia"]
[Result "1-0"]
[ECO "B41"]
[WhiteElo "2115"]
[BlackElo "1864"]
[Annotator "NA"]
[PlyCount "83"]
[EventDate "2019.08.02"]
[EventType "swiss"]
[EventCountry "SVK"]
[SourceTitle "playchess.com"]
[Source "ChessBase"]
[SourceQuality "1"]
[TimeControl "40/5400+30:1800+30"]

1. e4 {[%emt 0:00:00]} c5 {[%emt 0:00:00]} 2. Nf3 {[%emt 0:00:00]} e6 {[%emt 0:00:00]} 3. d4 {[%emt 0:00:00]} cxd4 {[%emt 0:00:00]} 4. Nxd4 {[%emt 0:00:00]} a6 {[%emt 0:00:00]} 5. c4 {[%emt 0:00:00]} Nf6 {[%emt 0:00:00]} 6. Nc3 {[%emt 0:00:00]} Qc7 {[%emt 0:00:05]} 7. Be2 {[%emt 0:00:00]} Bb4 {[%emt 0:00:25]} 8. O-O {[%emt 0:00:12]} O-O {[%emt 0:00:28]} 9. Bg5 {[%emt 0:00:25]} Bxc3 {[%emt 0:00:07]} 10. Bxf6 {[%emt 0:00:06]} Bb4 {[%emt 0:00:05]} 11. Bg5 {[%emt 0:00:25]} Nc6 {[%emt 0:00:33]} 12. Be3 {[%emt 0:03:59]} Be7 {[%emt 0:18:20]} 13. Nxc6 {[%emt 0:13:45]} dxc6 {[%emt 0:01:00]} 14. c5 {[%emt 0:04:52]} f5 {[%emt 0:07:59]} 15. exf5 {[%emt 0:10:32]} exf5 {[%emt 0:00:06]} 16. Qb3+ {[%emt 0:02:56]} Kh8 {[%emt 0:00:15]} 17. f4 {[%emt 0:07:51]} Bf6 {[%emt 0:02:19]} 18. Rfe1 {[%emt 0:02:06]} Bd7 {[%emt 0:08:13]} 19. Rad1 {[%emt 0:00:41]} Rae8 {[%emt 0:02:24]} 20. Bf3 {[%emt 0:05:42]} Be6 {[%emt 0:02:33]} 21. Qc2 {[%emt 0:01:40]} Qf7 {[%emt 0:08:12]} 22. b3 {[%emt 0:02:26]} a5 {[%emt 0:03:54]} 23. Bf2 {[%emt 0:03:22]} h6 {[%emt 0:11:51]} 24. Rd6 {[%emt 0:09:45]} a4 {[%emt 0:13:43]} 25. bxa4 {[%emt 0:01:15]} Bxa2 {[%emt 0:03:25]} 26. Rxe8 {[%emt 0:00:36]} Rxe8 {[%emt 0:00:11]} 27. Qd3 {[%emt 0:05:12]} Be6 {[%emt 0:05:13]} 28. a5 {[%emt 0:01:30]} Be7 {[%emt 0:04:51]} 29. Bd4 {[%emt 0:12:03]} Bxd6 {[%emt 0:01:22]} 30. cxd6 {[%emt 0:00:01]} Bc4 {[%emt 0:05:44]} 31. Qc3 {[%emt 0:00:18]} Rc8 {[%emt 0:01:03]} 32. h3 {[%emt 0:07:30]} Ba6 {[%emt 0:00:19]} 33. Kh2 {[%emt 0:03:27]} Rd8 {[%emt 0:00:27]} 34. Be5 {[%emt 0:00:21]} Rd7 {[%emt 0:00:36]} 35. Bd1 {[%emt 0:01:33]} Qc4 {[%emt 0:01:00]} 36. Qc2 {[%emt 0:00:44]} Qd3 {[%emt 0:00:33]} 37. Qxd3 {[%emt 0:00:44]} Bxd3 {[%emt 0:00:01]} 38. Bb3 {[%emt 0:00:04]} c5 {[%emt 0:00:57]} 39. Ba4 {[%emt 0:00:46]} Rd8 {[%emt 0:00:37]} 40. d7 {[%emt 0:00:00]} c4 {[%emt 0:00:00]} 41. Bc7 {[%emt 0:00:25]} Bc2 {[%emt 0:02:22]} 42. Bb5 {[%emt 0:02:03]} 1-0

[Event "EYCC Girls-U16 2019"]
[Site "Bratislava"]
[Date "2019.08.09"]
[Round "8.5"]
[White "Juhasz, Judit"]
[Black "Kuhar, Larisa"]
[Result "1-0"]
[ECO "B90"]
[WhiteElo "2050"]
[BlackElo "1894"]
[Annotator "NA"]
[PlyCount "123"]
[EventDate "2019.08.02"]
[EventType "swiss"]
[EventCountry "SVK"]
[SourceTitle "playchess.com"]
[Source "ChessBase"]
[SourceQuality "1"]
[TimeControl "40/5400+30:1800+30"]

1. e4 {[%emt 0:00:00]} c5 {[%emt 0:00:00]} 2. Nf3 {[%emt 0:00:00]} d6 {[%emt 0:00:00]} 3. d4 {[%emt 0:00:00]} cxd4 {[%emt 0:00:00]} 4. Nxd4 {[%emt 0:00:00]} Nf6 {[%emt 0:00:02]} 5. Nc3 {[%emt 0:00:06]} a6 {[%emt 0:00:11]} 6. Be3 {[%emt 0:00:17]} e5 {[%emt 0:00:42]} 7. Nb3 {[%emt 0:00:16]} Be6 {[%emt 0:01:09]} 8. f3 {[%emt 0:00:27]} h5 {[%emt 0:00:54]} 9. h4 {[%emt 0:01:02]} Be7 {[%emt 0:02:04]} 10. Qd2 {[%emt 0:00:48]} Nbd7 {[%emt 0:02:27]} 11. O-O-O {[%emt 0:03:48]} Rc8 {[%emt 0:01:45]} 12. Kb1 {[%emt 0:00:43]} Qc7 {[%emt 0:03:35]} 13. Qf2 {[%emt 0:02:49]} b5 {[%emt 0:04:02]} 14. Nd5 {[%emt 0:04:11]} Bxd5 {[%emt 0:14:12]} 15. exd5 {[%emt 0:03:07]} Bd8 {[%emt 0:00:36]} 16. Rd2 {[%emt 0:15:06]} Qb7 {[%emt 0:03:08]} 17. Bg5 {[%emt 0:05:25]} Bb6 {[%emt 0:23:54]} 18. Qe1 {[%emt 0:02:05]} O-O {[%emt 0:02:17]} 19. Bd3 {[%emt 0:02:24]} Rfe8 {[%emt 0:03:39]} 20. Bf5 {[%emt 0:07:49]} Rc4 {[%emt 0:04:38]} 21. Qg3 {[%emt 0:03:17]} g6 {[%emt 0:08:59]} 22. Re1 {[%emt 0:05:11]} Kh7 {[%emt 0:01:14]} 23. Bd3 {[%emt 0:01:26]} Rcc8 {[%emt 0:01:32]} 24. Qh3 {[%emt 0:05:30]} Bd8 {[%emt 0:03:54]} 25. Be4 {[%emt 0:16:46]} a5 {[%emt 0:01:04]} 26. Rf2 {[%emt 0:03:54]} a4 {[%emt 0:00:29]} 27. Nc1 {[%emt 0:00:05]} Bb6 {[%emt 0:02:33]} 28. Rff1 {[%emt 0:01:17]} Qc7 {[%emt 0:01:55]} 29. Re2 {[%emt 0:00:13]} Bd4 {[%emt 0:01:21]} 30. c3 {[%emt 0:04:34]} Bb6 {[%emt 0:00:44]} 31. a3 {[%emt 0:00:30]} Ba5 {[%emt 0:01:53]} 32. Rc2 {[%emt 0:01:57]} Qc4 {[%emt 0:03:39]} 33. Bd3 {[%emt 0:07:12]} Qxd5 {[%emt 0:01:19]} 34. g4 {[%emt 0:00:10]} Qb7 {[%emt 0:01:13]} 35. gxh5 {[%emt 0:00:24]} Nxh5 {[%emt 0:00:37]} 36. Bf5 {[%emt 0:01:49]} Rc7 {[%emt 0:03:58]} 37. Bg4 {[%emt 0:00:23]} Ndf6 {[%emt 0:00:59]} 38. Bxf6 {[%emt 0:00:06]} Nxf6 {[%emt 0:00:03]} 39. h5 {[%emt 0:00:09]} Kg7 {[%emt 0:01:41]} 40. hxg6 {[%emt 0:00:00]} Rh8 {[%emt 0:00:00]} 41. Qg3 {[%emt 0:01:02]} fxg6 {[%emt 0:06:21]} 42. Bf5 {[%emt 0:03:27]} Rh6 {[%emt 0:03:47]} 43. Rff2 {[%emt 0:14:13]} Nh5 {[%emt 0:09:31]} 44. Qg5 {[%emt 0:00:29]} Rf7 {[%emt 0:01:02]} 45. Bxg6 {[%emt 0:00:54]} Rxg6 {[%emt 0:00:07]} 46. Qxh5 {[%emt 0:00:04]} Qe7 {[%emt 0:02:22]} 47. Rh2 {[%emt 0:02:18]} Kf6 {[%emt 0:06:03]} 48. f4 {[%emt 0:01:55]} Rfg7 {[%emt 0:01:17]} 49. fxe5+ {[%emt 0:01:32]} dxe5 {[%emt 0:00:18]} 50. Rhf2+ {[%emt 0:01:26]} Ke6 {[%emt 0:00:09]} 51. Rcd2 {[%emt 0:04:29]} Qg5 {[%emt 0:02:18]} 52. Qh3+ {[%emt 0:00:19]} Qg4 {[%emt 0:00:02]} 53. Qd3 {[%emt 0:00:19]} Ke7 {[%emt 0:01:24]} 54. Qxb5 {[%emt 0:00:40]} Bc7 {[%emt 0:01:01]} 55. Nd3 {[%emt 0:04:40]} e4 {[%emt 0:02:34]} 56. Ne5 {[%emt 0:02:38]} Qg1+ {[%emt 0:00:42]} 57. Ka2 {[%emt 0:00:12]} Rd6 {[%emt 0:00:31]} 58. Rxd6 {[%emt 0:00:57]} Kxd6 {[%emt 0:00:37]} 59. Qc6+ {[%emt 0:01:11]} Kxe5 {[%emt 0:00:15]} 60. Qf6+ {[%emt 0:00:09]} Kd5 {[%emt 0:00:07]} 61. Rf5+ {[%emt 0:00:11]} Kc4 {[%emt 0:00:45]} 62. Qa6# {[%emt 0:00:08]} 1-0

[Event "EYCC Girls-U16 2019"]
[Site "Bratislava"]
[Date "2019.08.09"]
[Round "8.6"]
[White "Dylag, Emilia"]
[Black "Sade, Defne"]
[Result "1-0"]
[ECO "A06"]
[WhiteElo "2099"]
[BlackElo "1897"]
[Annotator "NA"]
[PlyCount "77"]
[EventDate "2019.08.02"]
[EventType "swiss"]
[EventCountry "SVK"]
[SourceTitle "playchess.com"]
[Source "ChessBase"]
[SourceQuality "1"]
[TimeControl "40/5400+30:1800+30"]

1. Nf3 {[%emt 0:00:00]} d5 {[%emt 0:00:00]} 2. g3 {[%emt 0:00:00]} Nf6 {[%emt 0:00:00]} 3. Bg2 {[%emt 0:00:11]} Bf5 {[%emt 0:00:00]} 4. O-O {[%emt 0:00:23]} h6 {[%emt 0:00:08]} 5. d3 {[%emt 0:00:41]} c6 {[%emt 0:00:23]} 6. c4 {[%emt 0:00:51]} e6 {[%emt 0:00:31]} 7. Nc3 {[%emt 0:00:36]} Bd6 {[%emt 0:01:21]} 8. cxd5 {[%emt 0:01:04]} exd5 {[%emt 0:00:40]} 9. e4 {[%emt 0:02:49]} d4 {[%emt 0:12:54]} 10. Nxd4 {[%emt 0:09:09]} Bg4 {[%emt 0:03:24]} 11. Nde2 {[%emt 0:01:21]} O-O {[%emt 0:01:21]} 12. Be3 {[%emt 0:02:39]} Qc8 {[%emt 0:03:44]} 13. f3 {[%emt 0:03:28]} Bh3 {[%emt 0:01:38]} 14. d4 {[%emt 0:02:33]} Bxg2 {[%emt 0:00:56]} 15. Kxg2 {[%emt 0:00:06]} Rd8 {[%emt 0:02:32]} 16. Qb3 {[%emt 0:03:50]} Bf8 {[%emt 0:01:10]} 17. Rac1 {[%emt 0:02:44]} Qd7 {[%emt 0:03:27]} 18. Rfd1 {[%emt 0:04:21]} Na6 {[%emt 0:06:38]} 19. a3 {[%emt 0:15:43]} Nh7 {[%emt 0:00:41]} 20. d5 {[%emt 0:05:06]} c5 {[%emt 0:01:57]} 21. e5 {[%emt 0:10:41]} Qf5 {[%emt 0:04:01]} 22. Qxb7 {[%emt 0:05:46]} Qxe5 {[%emt 0:01:20]} 23. Bf4 {[%emt 0:01:28]} Qf6 {[%emt 0:01:06]} 24. d6 {[%emt 0:01:10]} g5 {[%emt 0:03:59]} 25. Ne4 {[%emt 0:01:36]} Qe6 {[%emt 0:00:50]} 26. Qxa6 {[%emt 0:01:19]} gxf4 {[%emt 0:00:07]} 27. Nxf4 {[%emt 0:00:49]} Qb3 {[%emt 0:03:57]} 28. Rd2 {[%emt 0:03:32]} Ng5 {[%emt 0:01:37]} 29. Rc3 {[%emt 0:06:48]} Qb8 {[%emt 0:02:00]} 30. Nf6+ {[%emt 0:01:50]} Kh8 {[%emt 0:01:41]} 31. d7 {[%emt 0:00:40]} Bg7 {[%emt 0:09:17]} 32. Re3 {[%emt 0:01:14]} Rf8 {[%emt 0:05:47]} 33. Re8 {[%emt 0:01:17]} Qb3 {[%emt 0:00:51]} 34. Qc6 {[%emt 0:02:56]} Rd8 {[%emt 0:03:13]} 35. Rxf8+ {[%emt 0:00:32]} Bxf8 {[%emt 0:00:09]} 36. N6h5 {[%emt 0:01:34]} Bg7 {[%emt 0:01:01]} 37. Nxg7 {[%emt 0:00:42]} Kxg7 {[%emt 0:00:05]} 38. Nh5+ {[%emt 0:00:47]} Kg8 {[%emt 0:00:07]} 39. Qf6 {[%emt 0:00:19]} 1-0

[Event "EYCC Girls-U16 2019"]
[Site "Bratislava"]
[Date "2019.08.09"]
[Round "8.7"]
[White "Yedigaryan, Asya"]
[Black "Hryzlova, Sofiia"]
[Result "0-1"]
[ECO "A00"]
[WhiteElo "1583"]
[BlackElo "1799"]
[Annotator "NA"]
[PlyCount "104"]
[EventDate "2019.08.02"]
[EventType "swiss"]
[EventCountry "SVK"]
[SourceTitle "playchess.com"]
[Source "ChessBase"]
[SourceQuality "1"]
[TimeControl "40/5400+30:1800+30"]

1. g3 {[%emt 0:00:00]} g6 {[%emt 0:00:06]} 2. Bg2 {[%emt 0:00:00]} Bg7 {[%emt 0:00:17]} 3. e4 {[%emt 0:00:09]} c5 {[%emt 0:00:35]} 4. d3 {[%emt 0:00:09]} Nc6 {[%emt 0:00:10]} 5. f4 {[%emt 0:00:23]} d6 {[%emt 0:03:14]} 6. Nf3 {[%emt 0:00:27]} e5 {[%emt 0:00:59]} 7. O-O {[%emt 0:01:15]} Nge7 {[%emt 0:01:07]} 8. c3 {[%emt 0:02:01]} O-O {[%emt 0:03:14]} 9. Be3 {[%emt 0:06:38]} b6 {[%emt 0:08:45]} 10. Na3 {[%emt 0:11:14]} Ba6 {[%emt 0:04:41]} 11. f5 {[%emt 0:21:40]} gxf5 {[%emt 0:04:57]} 12. Ng5 {[%emt 0:02:05]} f4 {[%emt 0:09:36]} 13. gxf4 {[%emt 0:03:48]} exf4 {[%emt 0:00:49]} 14. Bxf4 {[%emt 0:06:16]} h6 {[%emt 0:01:57]} 15. Nh3 {[%emt 0:04:50]} Ng6 {[%emt 0:02:36]} 16. Bg3 {[%emt 0:05:50]} Nce5 {[%emt 0:03:05]} 17. Nf2 {[%emt 0:05:07]} Qg5 {[%emt 0:04:29]} 18. Nc2 {[%emt 0:01:41]} Nf4 {[%emt 0:03:48]} 19. Bxf4 {[%emt 0:00:51]} Qxf4 {[%emt 0:00:44]} 20. Nh3 {[%emt 0:01:03]} Qg4 {[%emt 0:03:14]} 21. Qxg4 {[%emt 0:01:04]} Nxg4 {[%emt 0:00:10]} 22. Rad1 {[%emt 0:01:35]} Ne5 {[%emt 0:05:11]} 23. Nf2 {[%emt 0:02:15]} Ng6 {[%emt 0:06:05]} 24. Ng4 {[%emt 0:04:04]} Rae8 {[%emt 0:02:43]} 25. Nce3 {[%emt 0:02:58]} Ne5 {[%emt 0:03:27]} 26. Nxe5 {[%emt 0:00:55]} Bxe5 {[%emt 0:05:18]} 27. Nd5 {[%emt 0:02:20]} Bc8 {[%emt 0:01:45]} 28. Rd2 {[%emt 0:05:16]} Be6 {[%emt 0:04:46]} 29. Rdf2 {[%emt 0:02:09]} Bxd5 {[%emt 0:01:22]} 30. exd5 {[%emt 0:00:05]} b5 {[%emt 0:01:45]} 31. Bh3 {[%emt 0:01:40]} b4 {[%emt 0:01:11]} 32. Rg2+ {[%emt 0:00:38]} Kh8 {[%emt 0:00:20]} 33. c4 {[%emt 0:00:28]} Bd4+ {[%emt 0:01:20]} 34. Kh1 {[%emt 0:00:04]} Re3 {[%emt 0:00:46]} 35. Bf5 {[%emt 0:00:11]} Rg8 {[%emt 0:01:07]} 36. Rc2 {[%emt 0:01:19]} Rf3 {[%emt 0:00:45]} 37. Rcc1 {[%emt 0:00:31]} Rxf1+ {[%emt 0:01:13]} 38. Rxf1 {[%emt 0:00:05]} Bxb2 {[%emt 0:00:19]} 39. Be4 {[%emt 0:00:47]} Bd4 {[%emt 0:00:54]} 40. Bg2 {[%emt 0:00:00]} Kg7 {[%emt 0:00:00]} 41. Re1 {[%emt 0:03:27]} Kf6 {[%emt 0:03:39]} 42. Bf3 {[%emt 0:01:14]} Be5 {[%emt 0:03:13]} 43. Rf1 {[%emt 0:02:04]} Ke7 {[%emt 0:01:17]} 44. Bd1 {[%emt 0:01:55]} Bd4 {[%emt 0:01:43]} 45. Bh5 {[%emt 0:04:37]} Rg7 {[%emt 0:02:53]} 46. h3 {[%emt 0:01:27]} a6 {[%emt 0:04:07]} 47. Kh2 {[%emt 0:02:01]} Be5+ {[%emt 0:01:00]} 48. Kh1 {[%emt 0:00:07]} Kf8 {[%emt 0:02:18]} 49. Rf3 {[%emt 0:07:36]} a5 {[%emt 0:01:10]} 50. Rf1 {[%emt 0:01:16]} Bd4 {[%emt 0:00:48]} 51. Kh2 {[%emt 0:00:12]} a4 {[%emt 0:02:21]} 52. Bd1 {[%emt 0:00:14]} b3 {[%emt 0:00:33]} 0-1

[Event "EYCC Girls-U16 2019"]
[Site "Bratislava"]
[Date "2019.08.09"]
[Round "8.8"]
[White "Bulatova, Kamaliya"]
[Black "Dubovyk, Anastasiia"]
[Result "1-0"]
[ECO "E71"]
[WhiteElo "2157"]
[BlackElo "1824"]
[Annotator "NA"]
[PlyCount "81"]
[EventDate "2019.08.02"]
[EventType "swiss"]
[EventCountry "SVK"]
[SourceTitle "playchess.com"]
[Source "ChessBase"]
[SourceQuality "1"]
[TimeControl "40/5400+30:1800+30"]

1. d4 {[%emt 0:00:00]} Nf6 {[%emt 0:00:00]} 2. c4 {[%emt 0:00:00]} g6 {[%emt 0:00:00]} 3. Nc3 {[%emt 0:00:00]} Bg7 {[%emt 0:00:00]} 4. e4 {[%emt 0:00:00]} d6 {[%emt 0:00:00]} 5. h3 {[%emt 0:00:00]} O-O {[%emt 0:00:28]} 6. Nf3 {[%emt 0:00:01]} e5 {[%emt 0:00:22]} 7. d5 {[%emt 0:00:04]} a5 {[%emt 0:00:26]} 8. g4 {[%emt 0:00:53]} Na6 {[%emt 0:00:59]} 9. Be3 {[%emt 0:00:21]} Nd7 {[%emt 0:00:50]} 10. a3 {[%emt 0:00:33]} Rb8 {[%emt 0:15:06]} 11. Nd2 {[%emt 0:06:53]} f5 {[%emt 0:04:24]} 12. gxf5 {[%emt 0:06:10]} gxf5 {[%emt 0:00:10]} 13. exf5 {[%emt 0:00:42]} Ndc5 {[%emt 0:04:47]} 14. Nde4 {[%emt 0:07:50]} Bxf5 {[%emt 0:03:44]} 15. Ng3 {[%emt 0:00:43]} Bg6 {[%emt 0:09:27]} 16. h4 {[%emt 0:02:08]} Qf6 {[%emt 0:08:36]} 17. Rh2 {[%emt 0:13:34]} Be8 {[%emt 0:07:00]} 18. Nce4 {[%emt 0:09:16]} Nxe4 {[%emt 0:04:05]} 19. Nxe4 {[%emt 0:00:06]} Qe7 {[%emt 0:02:37]} 20. Ng5 {[%emt 0:02:25]} Bd7 {[%emt 0:05:16]} 21. Bh3 {[%emt 0:07:12]} Bxh3 {[%emt 0:01:55]} 22. Rxh3 {[%emt 0:00:08]} Bf6 {[%emt 0:01:24]} 23. Ne6 {[%emt 0:01:25]} Rf7 {[%emt 0:01:08]} 24. Qh5 {[%emt 0:07:02]} Kh8 {[%emt 0:01:53]} 25. O-O-O {[%emt 0:01:04]} c6 {[%emt 0:05:07]} 26. Ng5 {[%emt 0:02:17]} Rg7 {[%emt 0:01:14]} 27. Ne4 {[%emt 0:00:33]} cxd5 {[%emt 0:08:38]} 28. Nxf6 {[%emt 0:05:55]} Qxf6 {[%emt 0:00:16]} 29. Rf3 {[%emt 0:00:58]} Qg6 {[%emt 0:03:59]} 30. Qxg6 {[%emt 0:00:09]} Rxg6 {[%emt 0:00:17]} 31. h5 {[%emt 0:00:16]} Rg4 {[%emt 0:01:51]} 32. cxd5 {[%emt 0:03:43]} Kg7 {[%emt 0:05:59]} 33. Rf5 {[%emt 0:00:57]} b5 {[%emt 0:01:38]} 34. f4 {[%emt 0:00:30]} Rf8 {[%emt 0:01:11]} 35. Rxf8 {[%emt 0:01:48]} Kxf8 {[%emt 0:00:02]} 36. fxe5 {[%emt 0:00:06]} Ke8 {[%emt 0:02:07]} 37. e6 {[%emt 0:00:16]} Rh4 {[%emt 0:00:28]} 38. Rg1 {[%emt 0:00:24]} Rc4+ {[%emt 0:00:43]} 39. Kb1 {[%emt 0:00:14]} Ke7 {[%emt 0:00:36]} 40. Bg5+ {[%emt 0:00:00]} Ke8 {[%emt 0:00:00]} 41. Bf6 1-0

[Event "EYCC Girls-U16 2019"]
[Site "Bratislava"]
[Date "2019.08.09"]
[Round "8.9"]
[White "Czarnecka, Lidia"]
[Black "Djidjeli, Sarah"]
[Result "1-0"]
[ECO "B32"]
[WhiteElo "1731"]
[BlackElo "2017"]
[Annotator "NA"]
[PlyCount "99"]
[EventDate "2019.08.02"]
[EventType "swiss"]
[EventCountry "SVK"]
[SourceTitle "playchess.com"]
[Source "ChessBase"]
[SourceQuality "1"]
[TimeControl "40/5400+30:1800+30"]

1. e4 {[%emt 0:00:00]} c5 {[%emt 0:00:00]} 2. Nf3 {[%emt 0:00:21]} Nc6 {[%emt 0:00:00]} 3. d4 {[%emt 0:00:22]} cxd4 {[%emt 0:00:00]} 4. Nxd4 {[%emt 0:00:40]} e5 {[%emt 0:00:00]} 5. Nb5 {[%emt 0:00:59]} d6 {[%emt 0:00:00]} 6. N1c3 {[%emt 0:00:43]} a6 {[%emt 0:00:00]} 7. Na3 {[%emt 0:00:12]} Be7 {[%emt 0:00:00]} 8. Be3 {[%emt 0:00:58]} Nf6 {[%emt 0:00:36]} 9. Nc4 {[%emt 0:01:23]} b5 {[%emt 0:00:44]} 10. Nb6 {[%emt 0:02:17]} Rb8 {[%emt 0:00:07]} 11. Nxc8 {[%emt 0:04:06]} Qxc8 {[%emt 0:00:15]} 12. Bd3 {[%emt 0:04:07]} O-O {[%emt 0:08:49]} 13. O-O {[%emt 0:00:51]} Nb4 {[%emt 0:03:24]} 14. Bg5 {[%emt 0:03:12]} Nxd3 {[%emt 0:05:58]} 15. Qxd3 {[%emt 0:00:20]} b4 {[%emt 0:07:29]} 16. Bxf6 {[%emt 0:08:58]} Bxf6 {[%emt 0:00:16]} 17. Nd5 {[%emt 0:00:33]} Bg5 {[%emt 0:10:44]} 18. g3 {[%emt 0:02:17]} Qg4 {[%emt 0:08:36]} 19. Rad1 {[%emt 0:15:32]} a5 {[%emt 0:03:13]} 20. b3 {[%emt 0:06:34]} h5 {[%emt 0:07:42]} 21. c4 {[%emt 0:01:13]} bxc3 {[%emt 0:07:38]} 22. Nxc3 {[%emt 0:00:11]} Rbd8 {[%emt 0:04:20]} 23. Qd5 {[%emt 0:03:24]} Rc8 {[%emt 0:02:53]} 24. Rd3 {[%emt 0:02:28]} Rc5 {[%emt 0:03:32]} 25. Qxd6 {[%emt 0:00:08]} Rfc8 {[%emt 0:03:03]} 26. Na4 {[%emt 0:04:12]} Rc1 {[%emt 0:01:11]} 27. Rdd1 {[%emt 0:00:41]} Qxe4 {[%emt 0:04:32]} 28. Rxc1 {[%emt 0:00:38]} Rxc1 {[%emt 0:00:59]} 29. Rxc1 {[%emt 0:00:33]} Bxc1 {[%emt 0:00:05]} 30. Qd8+ {[%emt 0:00:25]} Kh7 {[%emt 0:00:05]} 31. Qxa5 {[%emt 0:00:12]} h4 {[%emt 0:03:21]} 32. Qb5 {[%emt 0:01:43]} Bh6 {[%emt 0:04:02]} 33. Qf1 {[%emt 0:01:31]} hxg3 {[%emt 0:00:47]} 34. hxg3 {[%emt 0:00:07]} Qc2 {[%emt 0:00:19]} 35. Qa1 {[%emt 0:02:11]} e4 {[%emt 0:00:12]} 36. Qd4 {[%emt 0:03:10]} Bd2 {[%emt 0:05:13]} 37. Qc4 {[%emt 0:08:05]} Qd1+ {[%emt 0:00:53]} 38. Qf1 {[%emt 0:05:03]} Qf3 {[%emt 0:01:41]} 39. Qg2 {[%emt 0:02:22]} Qd1+ {[%emt 0:00:24]} 40. Kh2 {[%emt 0:00:00]} Qc2 {[%emt 0:00:00]} 41. Nb6 {[%emt 0:02:58]} f5 {[%emt 0:02:49]} 42. Nc4 {[%emt 0:01:15]} Qxa2 {[%emt 0:01:09]} 43. f4 {[%emt 0:01:28]} Qxb3 {[%emt 0:04:16]} 44. Nxd2 {[%emt 0:01:49]} Qd3 {[%emt 0:01:00]} 45. Kh3 {[%emt 0:08:30]} Kg8 {[%emt 0:01:12]} 46. Nf1 {[%emt 0:01:03]} e3 {[%emt 0:01:09]} 47. Qf3 {[%emt 0:00:16]} g5 {[%emt 0:01:40]} 48. fxg5 {[%emt 0:01:10]} f4 {[%emt 0:00:03]} 49. gxf4 {[%emt 0:01:14]} Kg7 {[%emt 0:03:22]} 50. Nxe3 {[%emt 0:00:15]} 1-0

[Event "EYCC Girls-U16 2019"]
[Site "Bratislava"]
[Date "2019.08.09"]
[Round "8.10"]
[White "Khachatryan, Veronika"]
[Black "Srdanovic, Jovana"]
[Result "1/2-1/2"]
[ECO "A06"]
[WhiteElo "1870"]
[BlackElo "1975"]
[Annotator "NA"]
[PlyCount "85"]
[EventDate "2019.08.02"]
[EventType "swiss"]
[EventCountry "SVK"]
[SourceTitle "playchess.com"]
[Source "ChessBase"]
[SourceQuality "1"]
[TimeControl "40/5400+30:1800+30"]

1. Nf3 {[%emt 0:00:00]} d5 {[%emt 0:00:00]} 2. g3 {[%emt 0:00:00]} c6 {[%emt 0:00:00]} 3. Bg2 {[%emt 0:00:00]} Bg4 {[%emt 0:00:00]} 4. O-O {[%emt 0:00:02]} Nd7 {[%emt 0:00:00]} 5. d3 {[%emt 0:02:30]} e6 {[%emt 0:00:05]} 6. c4 {[%emt 0:00:05]} Bd6 {[%emt 0:00:14]} 7. Nc3 {[%emt 0:00:16]} Ne7 {[%emt 0:00:37]} 8. Qb3 {[%emt 0:03:43]} O-O {[%emt 0:03:17]} 9. cxd5 {[%emt 0:02:57]} exd5 {[%emt 0:00:22]} 10. e4 {[%emt 0:04:52]} Nc5 {[%emt 0:14:30]} 11. Qc2 {[%emt 0:01:00]} Rc8 {[%emt 0:01:56]} 12. Be3 {[%emt 0:15:28]} Ne6 {[%emt 0:07:40]} 13. Ne2 {[%emt 0:00:37]} Qa5 {[%emt 0:01:13]} 14. Nfd4 {[%emt 0:05:06]} Rfd8 {[%emt 0:15:55]} 15. f3 {[%emt 0:08:33]} Nxd4 {[%emt 0:01:45]} 16. Nxd4 {[%emt 0:01:55]} Bd7 {[%emt 0:01:43]} 17. Nb3 {[%emt 0:02:20]} Qa4 {[%emt 0:05:00]} 18. Qf2 {[%emt 0:04:41]} b6 {[%emt 0:02:31]} 19. Rfd1 {[%emt 0:05:38]} c5 {[%emt 0:03:13]} 20. f4 {[%emt 0:08:13]} Bg4 {[%emt 0:05:14]} 21. Rdc1 {[%emt 0:02:20]} c4 {[%emt 0:05:14]} 22. dxc4 {[%emt 0:00:26]} dxe4 {[%emt 0:00:28]} 23. Bxe4 {[%emt 0:11:21]} Rxc4 {[%emt 0:02:38]} 24. Rxc4 {[%emt 0:00:05]} Qxc4 {[%emt 0:00:05]} 25. Qg2 {[%emt 0:01:40]} Bf5 {[%emt 0:01:43]} 26. Bf3 {[%emt 0:01:24]} Bb8 {[%emt 0:01:45]} 27. Rc1 {[%emt 0:09:34]} Qa4 {[%emt 0:00:50]} 28. Rd1 {[%emt 0:00:24]} Rxd1+ {[%emt 0:05:52]} 29. Bxd1 {[%emt 0:00:01]} Qc6 {[%emt 0:00:16]} 30. Qd2 {[%emt 0:02:32]} Qd7 {[%emt 0:00:48]} 31. Nd4 {[%emt 0:01:58]} Be4 {[%emt 0:01:19]} 32. Bb3 {[%emt 0:01:37]} h6 {[%emt 0:01:23]} 33. Bc4 {[%emt 0:01:40]} Nd5 {[%emt 0:02:11]} 34. Bb5 {[%emt 0:01:58]} Qh3 {[%emt 0:01:03]} 35. Bf1 {[%emt 0:00:32]} Qc8 {[%emt 0:00:31]} 36. Bf2 {[%emt 0:00:50]} Nf6 {[%emt 0:00:33]} 37. Qe2 {[%emt 0:01:32]} Ba8 {[%emt 0:01:10]} 38. Bg2 {[%emt 0:00:25]} Qc1+ {[%emt 0:00:58]} 39. Be1 {[%emt 0:00:30]} Bxg2 {[%emt 0:00:35]} 40. Kxg2 {[%emt 0:00:00]} Qc5 {[%emt 0:00:00]} 41. Nf3 {[%emt 0:02:32]} Qc6 {[%emt 0:02:19]} 42. Bc3 Nd5 43. Be1 1/2-1/2

[Event "EYCC Girls-U16 2019"]
[Site "Bratislava"]
[Date "2019.08.09"]
[Round "8.11"]
[White "Laurincova, Kristyna"]
[Black "Bardorz, Jana"]
[Result "1-0"]
[ECO "C78"]
[WhiteElo "1981"]
[BlackElo "1883"]
[Annotator "NA"]
[PlyCount "41"]
[EventDate "2019.08.02"]
[EventType "swiss"]
[EventCountry "SVK"]
[SourceTitle "playchess.com"]
[Source "ChessBase"]
[SourceQuality "1"]
[TimeControl "40/5400+30:1800+30"]

1. e4 {[%emt 0:00:00]} e5 {[%emt 0:00:00]} 2. Nf3 {[%emt 0:00:00]} Nc6 {[%emt 0:00:00]} 3. Bb5 {[%emt 0:00:00]} a6 {[%emt 0:00:00]} 4. Ba4 {[%emt 0:00:00]} Nf6 {[%emt 0:00:00]} 5. O-O {[%emt 0:00:17]} b5 {[%emt 0:00:19]} 6. Bb3 {[%emt 0:00:10]} Bc5 {[%emt 0:00:19]} 7. Re1 {[%emt 0:08:04]} d6 {[%emt 0:03:39]} 8. c3 {[%emt 0:01:21]} Bg4 {[%emt 0:05:26]} 9. h3 {[%emt 0:00:35]} Bh5 {[%emt 0:00:20]} 10. d3 {[%emt 0:00:45]} h6 {[%emt 0:01:27]} 11. Nbd2 {[%emt 0:01:52]} g5 {[%emt 0:06:33]} 12. g4 {[%emt 0:25:06]} Bg6 {[%emt 0:02:26]} 13. Nf1 {[%emt 0:02:20]} h5 {[%emt 0:05:50]} 14. Bxg5 {[%emt 0:06:05]} hxg4 {[%emt 0:00:16]} 15. d4 {[%emt 0:00:37]} gxf3 {[%emt 0:07:14]} 16. Qxf3 {[%emt 0:03:16]} Qd7 {[%emt 0:02:22]} 17. Bxf6 {[%emt 0:13:07]} Rxh3 {[%emt 0:04:18]} 18. Qg2 {[%emt 0:00:01]} exd4 {[%emt 0:02:59]} 19. e5 {[%emt 0:03:24]} Kf8 {[%emt 0:12:12]} 20. e6 {[%emt 0:00:38]} fxe6 {[%emt 0:01:51]} 21. Qxh3 {[%emt 0:01:27]} 1-0